Cogmind - Beta 13 @@@ ROGUE MODE // 2024.04.19 @ 13:21:21 Player: Oldman Pu Result: Destroyed by G-47 Trooper with Particle Gun Performance ------------- Evolutions (2) 1000 Regions Visited (4) 800 Robots Destroyed (123) 615 Value Destroyed (3511) 3511 Prototype IDs (10) 200 Alien Tech Used (0) 0 Bonus (211) 211 TOTAL SCORE: 6337 Bonus ------- High Alert Combat Kills 211 Cogmind --------- Core Integrity 0/550 Matter 290/300 Energy 5/160 System Corruption 4% Temperature Cool (9) Movement Rolling (145) Ox3 Location -8/Storage Parts ------- > --- POWER (2) -------- Light Nuclear Core > --- PROPULSION (2) --- Compact Wheel > --- UTILITY (4) ------ Improved Heat Sink Advanced Heat Sink High-capacity Storage Unit Core Shielding > --- WEAPON (3) ------- Heavy Particle Gun > --- INVENTORY (20) --- Cryofiber Web Improved Heat Sink Improved Heat Sink Improved Heat Sink Core Shielding Light Armor Plating Light Armor Plating Light Armor Plating Beam Rifle Pulse Rifle Pulse Rifle Pulse Rifle Pulse Rifle Pulse Rifle Heavy Particle Gun Heavy Particle Gun Heavy Particle Gun Heavy Assault Rifle Peak State ------------ > --- POWER ------------ Improved Deuterium Engine Improved Deuterium Engine > --- PROPULSION ------- Wheel Compact Wheel > --- UTILITY ---------- Cryofiber Web Improved Heat Sink High-capacity Storage Unit Light Armor Plating > --- WEAPON ----------- Field Laser Field Laser Gauss Rifle > --- INVENTORY -------- Improved Ion Engine Improved Deuterium Engine Wheel Improved Heat Sink Improved Heat Sink Improved Propulsion Shielding Light Armor Plating Hardened Heavy Armor Plating Beam Rifle Beam Rifle Field Laser Field Laser Pulse Rifle Subdweller Beam Cannon Subdweller Machine Gun Subdweller Machine Gun Enhanced Autogun Light Cannon Light Cannon [Rating: 33] Favorites ----------- Power Light Ion Engine Engine Light Ion Engine Power Core Light Nuclear Core Propulsion Wheel Treads Light Treads Leg Carbon-fiber Leg Wheel Wheel Utility High-capacity Storage Unit Device Improved Heat Sink Storage High-capacity Storage Unit Protection Light Armor Plating Weapon Advanced Beam Cannon Energy Gun Field Laser Energy Cannon Advanced Beam Cannon Ballistic Gun Gauss Rifle Ballistic Cannon Light Cannon Build | -11 -10 -10 -8 -8 ------- Run | Yrd Mat Sub Mat Sto Slots Evolved 4 | . . . 4 . Power 1 | . . . 1 . Propulsion . | . . . . . Utility 2 | . . . 2 . Weapon 1 | . . . 1 . Parts Attached 121 | 6 11 13 62 29 Power 25 | 1 2 1 14 7 Engine 22 | 1 2 1 13 5 Core 3 | . . . 1 2 Reactor . | . . . . . Propulsion 29 | 2 3 4 12 8 Treads 1 | . . . . 1 Leg 2 | . . . . 2 Wheel 26 | 2 3 4 12 5 Hover . | . . . . . Flight . | . . . . . Utility 32 | 1 4 1 21 5 Device 15 | . 1 . 12 2 Storage 3 | 1 2 . . . Processor . | . . . . . Hackware . | . . . . . Protection 14 | . 1 1 9 3 Artifact . | . . . . . Weapon 35 | 2 2 7 15 9 Energy Gun 8 | . . 2 5 1 Energy Cannon 11 | . . 2 3 6 Ballistic Gun 13 | 2 . 2 7 2 Ballistic Cannon 3 | . 2 1 . . Launcher . | . . . . . Special Weapon . | . . . . . Impact Weapon . | . . . . . Slashing Weapon . | . . . . . Piercing Weapon . | . . . . . Special Melee Weapon . | . . . . . Unidentified Prototypes 3 | . . . 3 . Parts Lost 44 | . . 2 17 25 Power 10 | . . . 4 6 Propulsion 13 | . . 2 4 7 Utility 9 | . . . 5 4 Weapon 12 | . . . 4 8 Highest Loss Streak 12 | . . 1 4 12 To Critical Strikes . | . . . . . Average Slot Usage (%) 94 | . 100 95 96 81 Engine 13 | . 14 14 14 9 Wheel 19 | . 28 23 16 8 Device 8 | . . . 17 15 Storage 12 | . 17 14 9 9 Protection 10 | . 9 14 9 9 Energy Gun 3 | . . . 8 . Energy Cannon 9 | . . 13 6 19 Ballistic Gun 7 | . 3 4 12 4 Ballistic Cannon 7 | . 24 10 . . Naked Turns . | . . . . . Heaviest Build 77 | 10 52 53 77 76 Greatest Support 40 | 26 26 40 40 32 Greatest Overweight (x) 18 | 2 2 17 7 18 Average Overweight (x) 2 | . 1 2 2 3 Largest Inventory Capacity 20 | 8 20 20 20 20 Average Capacity 19 | 7 18 20 20 20 Most Carried 20 | . 20 20 20 20 Average Carried 18 | . 13 19 19 17 Final Capacity 20 | 8 20 20 20 20 Final Carried 20 | . 20 20 20 18 Class Distribution -------------------- 51% | Mutant 36% | Scavenger-Tank 7% | Tank 3% | Scavenger-Mutant Dominant Class ---------------- Mutant | -10/Materials Mutant | -10/Subcaves Scavenger-Tank | -8/Materials Scavenger-Tank | -8/Storage Resources | -11 -10 -10 -8 -8 ----------- Run | Yrd Mat Sub Mat Sto Matter Collected 2914 | 169 536 380 1467 362 Remotely . | . . . . . Salvage Created 4736 | . 518 319 2607 1292 Parts 263 | . 35 21 139 68 Haulers Intercepted 10 | . 2 . 6 2 Recyclers Shooed 6 | . 1 . 3 2 Parts Field Recycled . | . . . . . Retrieved Matter . | . . . . . Parts Self-Destructed 15 | . . 15 . . Prevented . | . . . . . Kills | -11 -10 -10 -8 -8 ------- Run | Yrd Mat Sub Mat Sto Combat Hostiles Destroyed 82 | . 12 9 39 22 Guns 37 | . 3 1 30 3 Cannons 41 | . 9 8 8 16 Classes Destroyed 17 | . 6 2 9 . Worker 10 | . 1 . 4 5 Builder 3 | . . . 3 . Tunneler 1 | . . . 1 . Hauler 10 | . 2 . 6 2 Recycler 5 | . 1 . 3 1 Mechanic 2 | . . . 1 1 Operator 2 | . . . 2 . Watcher 8 | . 3 . 5 . Swarmer 15 | . 6 . 6 3 Grunt 33 | . 6 2 16 9 Brawler 3 | . . . 2 1 Duelist 2 | . . . 1 1 Protector 3 | . . . 1 2 Sentry 16 | . . 1 9 6 Hunter 3 | . . . 3 . Heavy 1 | . . . 1 . Subdweller 6 | . . 6 . . Best Kill Streak 8 | . 4 3 6 8 Combat Bots Only 6 | . 3 3 4 6 Max Kills in Single Turn 2 | . 1 1 2 1 Gunslinging 1 | . . . 1 . Exploded . | . . . . . Melee . | . . . . . Uniques/NPCs Destroyed . | . . . . . Combat | -11 -10 -10 -8 -8 -------- Run | Yrd Mat Sub Mat Sto Hostile Shots Fired 470 | . 41 30 205 194 Missed 115 | . 11 9 46 49 Damage Taken 5840 | . 280 488 2692 2380 Core 730 | . 39 141 282 268 Absorbed by Shields . | . . . . . Redirected to Shielding 50 | . . . . 50 Core Remaining (%) 64 | 100 . 28 . . Volleys Fired 350 | . 45 69 160 76 Largest 3 | . 2 2 3 3 Hottest 204 | . 70 116 164 204 Shots Fired 883 | . 90 138 457 198 Gun 491 | . 40 25 387 39 Cannon 392 | . 50 113 70 159 Launcher . | . . . . . Special . | . . . . . Kinetic 436 | . 90 75 234 37 Thermal 447 | . . 63 223 161 Explosive . | . . . . . Electromagnetic . | . . . . . Robot Hit Streak 17 | . 5 9 13 17 Robot Miss Streak 7 | . 4 2 7 6 Penetration Max 1 | . . . 1 . Secondary Targets 5 | . . . 5 . Max Gunslinging Chain 1 | . . . 1 . Shots Hit Robots 477 | . 48 37 281 111 Core Hits 191 | . 25 16 107 43 Critical Kills 5 | . . 1 1 3 Critical Parts Destroyed 1 | . . . 1 . Critical Strikes 12 | . . 3 6 3 Burn 4 | . . . 4 . Meltdown 4 | . . . 1 3 Destroy 3 | . . 2 1 . Blast 1 | . . 1 . . Melee Attacks . | . . . . . Impact . | . . . . . Slashing . | . . . . . Piercing . | . . . . . Sneak Attacks . | . . . . . Combat Hostiles . | . . . . . Follow-up Attacks . | . . . . . Damage Inflicted 8687 | . 598 660 4945 2484 Guns 4710 | . 168 83 4095 364 Cannons 3972 | . 425 577 850 2120 Explosions . | . . . . . Melee . | . . . . . Ramming 5 | . 5 . . . Kinetic 3687 | . 593 447 2321 326 Thermal 4995 | . . 213 2624 2158 Explosive . | . . . . . Electromagnetic . | . . . . . Impact . | . . . . . Slashing . | . . . . . Piercing . | . . . . . Highest Corruption 4 | . . . 3 4 Average Corruption 2 | . . . 2 3 Corruption Purged . | . . . . . Corruption Blocked . | . . . . . Effects 25 | . . . 5 20 Message Errors 7 | . . . 2 5 Matter Fused 3 | . . . 1 2 Heat Flow Errors 1 | . . . . 1 Energy Discharges 2 | . . . . 2 Parts Fused 1 | . . . . 1 Data Loss (minor) 5 | . . . 2 3 Data Loss (major) 2 | . . . . 2 Misfires 2 | . . . . 2 Weapon Failures 2 | . . . . 2 Overload Shots . | . . . . . Overflow Damage 20 | . . . . 20 Projectiles 20 | . . . . 20 Explosions . | . . . . . Melee . | . . . . . Knockbacks 8 | . 3 5 . . Impact . | . . . . . Kinetic 8 | . 3 5 . . Secondary . | . . . . . Self-Inflicted Damage 2 | . 2 . . . Shots . | . . . . . Rammed 1 | . 1 . . . Targets Rammed 1 | . 1 . . . Kicked . | . . . . . Crushed . | . . . . . Highest Temperature 442 | . 108 18 442 359 Average Temperature 94 | . 30 10 110 99 Received Heat Transfer 2289 | . 51 78 954 1206 Effects 7 | . . . 7 . Shutdowns 1 | . . . 1 . Energy Bleed 2 | . . . 2 . Interference 4 | . . . 4 . Siege Activations . | . . . . . Robots Corrupted . | . . . . . Combat Hostiles . | . . . . . Parts Fried . | . . . . . Impact Corruptions . | . . . . . Robots Melted 4 | . . . 1 3 Combat Hostiles 4 | . . . 1 3 Parts Melted 18 | . . . 12 6 Heat Transferred 10032 | . . 444 5846 3742 Parts Sabotaged . | . . . . . Parts Stolen . | . . . . . Parts Stripped . | . . . . . Power Chain Reactions . | . . . . . Alert | -11 -10 -10 -8 -8 ------- Run | Yrd Mat Sub Mat Sto Peak Influence 699 | . 290 . 699 478 Initial 295 | . . . . 295 Average 308 | . 134 . 370 339 Maximum Alert Level 2 | . 1 . 2 2 Low Security (%) 41 | 100 93 . 32 1 Level 1 28 | . 6 . 21 81 Level 2 30 | . . . 46 16 Level 3 . | . . . . . Level 4 . | . . . . . Level 5 . | . . . . . High Security . | . . . . . Max Security . | . . . . . Squads Dispatched 11 | . 2 . 5 4 Investigation 4 | . 2 . 1 1 Extermination . | . . . . . Reinforcement 4 | . . . 3 1 Assault 3 | . . . 1 2 Garrison . | . . . . . Intercept . | . . . . . Searches Triggered . | . . . . . Construction Impeded . | . . . . . Haulers Reinforced . | . . . . . Active Scanning Responses . | . . . . . Cargo Convoy Interrupts . | . . . . . Stealth | -11 -10 -10 -8 -8 --------- Run | Yrd Mat Sub Mat Sto Distress Signals 5 | . . . 4 1 Communications Jammed . | . . . . . Distress Signals . | . . . . . Times Spotted 112 | . 15 11 55 31 Peak Tracking Total 10 | . 4 2 5 10 Tactical Retreats 4 | . 1 1 1 1 Traps | -11 -10 -10 -8 -8 ------- Run | Yrd Mat Sub Mat Sto Traps Triggered 18 | . 1 2 12 3 Indirectly . | . . . . . Trap Hack Attempts . | . . . . . Triggered . | . . . . . Disarmed 4 | . 3 . . 1 Reprogrammed . | . . . . . Reused . | . . . . . Traps Extracted . | . . . . . Installed . | . . . . . Triggered 1 | . . 1 . . Machines | -11 -10 -10 -8 -8 ---------- Run | Yrd Mat Sub Mat Sto Machines Disabled 10 | . 3 . 7 . Max in Single Turn 1 | . 1 . 1 . Garrison Access 1 | . . . 1 . Machines Repaired . | . . . . . Machines Dismantled . | . . . . . Machines Sabotaged . | . . . . . Overloaded Fab Kills . | . . . . . Hacking | -11 -10 -10 -8 -8 --------- Run | Yrd Mat Sub Mat Sto Machines Accessed 20 | . 6 . 12 2 Terminals 16 | . 6 . 8 2 Fabricators . | . . . . . Repair Stations 1 | . . . 1 . Recycling Units . | . . . . . Scanalyzers 2 | . . . 2 . Garrison Access 1 | . . . 1 . Total Hacks 63 | . 22 . 35 6 Successful 48 | . 16 . 27 5 Failed 15 | . 6 . 8 1 Catastrophic . | . . . . . Database Lockouts . | . . . . . Manual . | . . . . . Terminals 47 | . 22 . 19 6 Fabricators . | . . . . . Repair Stations 2 | . . . 2 . Recycling Units . | . . . . . Scanalyzers 12 | . . . 12 . Garrison Access 2 | . . . 2 . Terminal Hacks 36 | . 16 . 15 5 Record 7 | . 2 . 4 1 Prototype ID Bank 4 | . 1 . 3 . Branch Access Points 2 | . 1 . 1 . Emergency Access Points 5 | . 2 . 3 . Terminal Index 1 | . . . 1 . Alert Level 3 | . 3 . . . Locate Traps 3 | . 2 . . 1 Disarm Traps 3 | . 1 . . 2 Dispatch Records 3 | . 2 . . 1 Surveillance Status 1 | . 1 . . . Reinforcement Status 1 | . . . 1 . Hauler Manifests 1 | . . . 1 . Zone Layout 2 | . 1 . 1 . Fabricator Hacks . | . . . . . Repair Station Hacks 1 | . . . 1 . Scan Component 1 | . . . 1 . Recycling Unit Hacks . | . . . . . Scanalyzer 10 | . . . 10 . Insert Component 5 | . . . 5 . Analyze 5 | . . . 5 . Garrison Access Hacks 1 | . . . 1 . Seal Access 1 | . . . 1 . Unauthorized Hacks . | . . . . . Terminals . | . . . . . Fabricators . | . . . . . Repair Stations . | . . . . . Recycling Units . | . . . . . Scanalyzers . | . . . . . Garrison Access . | . . . . . Data Cores Recovered 1 | . . . 1 . Used . | . . . . . Hacking Detections 12 | . 3 . 8 1 Full Trace Events 3 | . 1 . 1 1 Feedback Events . | . . . . . Feedback Blocked . | . . . . . Robot Schematics Acquired . | . . . . . Robots Built . | . . . . . Authchips . | . . . . . Time . | . . . . . Total Robot Build Rating . | . . . . . Part Schematics Acquired 5 | . . . 5 . Parts Built . | . . . . . Authchips . | . . . . . Time . | . . . . . Total Part Build Rating . | . . . . . Parts Repaired . | . . . . . Time . | . . . . . Parts Recycled . | . . . . . Recycled Matter . | . . . . . Retrieved Matter . | . . . . . Retrieved Components . | . . . . . Parts Scanalyzed 5 | . . . 5 . Part Schematics Acquired 5 | . . . 5 . Parts Damaged . | . . . . . Bothacking | -11 -10 -10 -8 -8 ------------ Run | Yrd Mat Sub Mat Sto Used RIF Installer . | . . . . . Robots Hacked . | . . . . . Non-combat . | . . . . . Combat . | . . . . . Robot Hacks Applied . | . . . . . Relay Couplers Released . | . . . . . Fabnet Peak Effective % . | . . . . . Robots Rewired . | . . . . . Allies Hacked . | . . . . . Hacks Repelled . | . . . . . Allies | -11 -10 -10 -8 -8 -------- Run | Yrd Mat Sub Mat Sto Total Allies 2 | . . . . 2 Largest Group 2 | . . . . 2 Highest-Rated Group 62 | . . . . 62 Highest-Rated Ally 31 | . . . . 31 Total Orders . | . . . . . Ally Attacks 13 | . . . . 13 Total Damage 210 | . . . . 210 Kills . | . . . . . Allies Corrupted . | . . . . . Allies Melted . | . . . . . Intel | -11 -10 -10 -8 -8 ------- Run | Yrd Mat Sub Mat Sto Robot Analysis Total . | . . . . . Derelict Logs Recovered 1 | . . 1 . . Drone Launches . | . . . . . Drone Recoveries . | . . . . . Exploration | -11 -10 -10 -8 -8 ------------- Run | Yrd Mat Sub Mat Sto Turns Passed 7087 | 40 1053 2405 2760 829 Spaces Moved 3253 | 39 679 675 1556 304 Core 64 | 14 . 41 . 9 Treads 3 | . . . . 3 Legs 39 | . . . . 39 Wheels 3147 | 25 679 634 1556 253 Hover . | . . . . . Flight . | . . . . . Fastest Speed 50 | 50 90 107 107 110 Average Speed 134 | 80 108 160 129 171 Slowest Speed 950 | 150 110 900 185 950 Overloaded Moves . | . . . . . Propulsion Burnouts . | . . . . . Robots Hopped . | . . . . . Cave-ins Triggered . | . . . . . Exploration Rate (%) 57 | 3 96 42 96 48 Regions Visited 4 Branch Regions 2 Pre-discovered Areas . | . . . . . Known Exits Taken 1 | . . . 1 . Unknown Exits Taken 3 | 1 1 1 . . Scrap Searched 5 | . . 5 . . Spaces Dug . | . . . . . Terrain Destroyed 4 | . . 1 3 . Melee . | . . . . . Projectile 4 | . . 1 3 . AOE . | . . . . . Terrain Rammed . | . . . . . Walls Destroyed . | . . . . . Machines Disabled . | . . . . . Actions | -11 -10 -10 -8 -8 --------- Run | Yrd Mat Sub Mat Sto Total 5309 | 44 916 1863 2029 457 Wait 1398 | . 146 1079 151 22 Move 3249 | 38 678 674 1555 304 Hop . | . . . . . Pick Up 98 | . 25 12 45 16 Fast Attach 32 | 6 1 4 10 11 Attach 34 | . 1 . 20 13 Detach . | . . . . . Swap 55 | . 9 9 32 5 Drop 92 | . 10 16 56 10 Fire 350 | . 45 69 160 76 Melee . | . . . . . Ram 1 | . 1 . . . Kick . | . . . . . Crush . | . . . . . Escape Stasis . | . . . . . Rewire . | . . . . . Trap . | . . . . . Miscellaneous . | . . . . . Route ------- -11/Scrapyard -10/Materials (discovered 5 exits: [*Mat x3] / *Min / [*Sub]) -10/Subcaves -8/Materials (discovered 5 exits: [*Fac x3] / *Sto x2) -8/Storage History --------- Turn | Location | Event 11 | -11/Scrapyard | Discovered new exit (range 16) 41 | -11/Scrapyard | Entered Materials 214 | -10/Materials | Identified exit to Mines 248 | -10/Materials | Discovered new exit (range 13) 301 | -10/Materials | Build established: Mutant 462 | -10/Materials | Discovered new exit (range 13) 608 | -10/Materials | Discovered new exit (range 16) 1072 | -10/Materials | Discovered new exit (range 5) 1094 | -10/Materials | Entered Subcaves 1104 | -10/Subcaves | Learned Materials stockpile data 1166 | -10/Subcaves | Disturbed a concealed Subdweller 1228 | -10/Subcaves | A swath of the cavern ceiling suddenly collapsed 2619 | -10/Subcaves | Ambushed by Subdweller buried in earth 2632 | -10/Subcaves | Core integrity fell below 50% 3479 | -10/Subcaves | Discovered new exit (range 8) 3499 | -10/Subcaves | Entered Materials 3499 | -8/Materials | Evolved 4 slots: Power x1, Utility x2, Weapon x1 3593 | -8/Materials | Discovered new exit (range 9) 3614 | -8/Materials | Lost 4 parts (1p1u2w) 3737 | -8/Materials | Discovered new exit (range 6) 3992 | -8/Materials | Build established: Scavenger-Tank 4835 | -8/Materials | Discovered new exit (range 5) 5121 | -8/Materials | Discovered new exit (range 12) 5173 | -8/Materials | Lost 3 parts (1n2u) 5461 | -8/Materials | Build established: Tank 5553 | -8/Materials | Lost 4 parts (2p1u1w) 5899 | -8/Materials | First assault squad dispatched 5920 | -8/Materials | Discovered new exit (range 3) 5955 | -8/Materials | Build established: Scavenger-Tank 6010 | -8/Materials | Core integrity fell below 50% 6215 | -8/Materials | Identified exit to Storage 6259 | -8/Materials | Entered Storage 6268 | -8/Storage | Met a pair of Derelict thieves 6440 | -8/Storage | Core integrity fell below 20% 6475 | -8/Storage | Lost 12 parts (2p2n4u4w) 6738 | -8/Storage | Lost 4 parts (1p2n1w) 7028 | -8/Storage | Lost 3 parts (2p1w) 7088 | -8/Storage | Destroyed by G-47 Trooper with Particle Gun Last Messages --------------- Map updated. >>Traps(Disarm) Disarmed 1 EMP Trap. >>Traps(Disarm) No traps found in local area. 07014_ ALERT: Suspicious activity at Terminal S010. Dispatching Investigation squad. 07023_ K-01 Serf collects debris. 07031_ System corrupted: Heat flow error (+203). 07046_ K-01 Serf collects debris. 07047_ A-02 Transporter destroyed. 07049_ Adv. Beam Cannon destroyed. 07050_ K-01 Serf collects debris. 07052_ Wheel destroyed. 07054_ K-01 Serf collects debris. 07074_ Wheel destroyed. 07077_ G-47 Trooper destroyed. 07081_ Acquired 15 matter. 07081_ Adv. Beam Cannon destroyed. 07087_ Acquired Lgt. Nuclear Core. Map ----- +----------------------------------------------------+ | # """" #######??# """ """ # #?## """ | | # """" # #??# """ """ + #??# | | # """" # ! #### """ """ # ########+### | | # " =% + """ """ # % = % | | # # #### """ """ # = * ## | | # # #??# +% ^ #? | | # !! ## ##??############+#########+##? | | # [% ## #??????????# #???????? | | ### ####### #??????????# #???????? | | ??###?????# #??????????# #???????? | | ??????????# #??????????# """ """ #???????? | | ??????????# #??????????# """ """ #???????? | | ??????????# ][#??????????# """ """ #???????? | | ??????????# !%#??????????# #???????? | | ??????????# ]!#??????????# #???????? | | ??????????# =#########################????? | | ??????????# = ?? | | ??????????# ] =% ?? | | ??????????# !!! [ ?? | | ??????????####" !!! ############/####???? | | ???????????"### !!! T#??????????????????? | | ???????????" ##??????????????????? | | ???????????" #???????????????????? | | ???????????"#T###T#!g #???????????????????? | | ????????????########g####??????????????????? | | ??????????????# @% #??????????????????? | | ??????????????# "T" """ #??????????????????? | | ??????????????# """ #??????????????????? | | ??????????????# ! """ #??????????????????? | | ??????????????# """ #??????????????????? | | ??????????????# """ #??????????????????? | | ??????????????# #??????????????????? | | ??????????????# ? ??????????????????? | | ??????????????########?##??????????????????? | | ???????????????????????????????????????????? | | ???????????????????????????????????????????? | | ???????????????????????????????????????????? | | ???????????????????????????????????????????? | | ???????????????????????????????????????????? | | | | | | | | | | | | | | | | | | | | | | | +----------------------------------------------------+ Best States ------------- Heat Dissipation 67 Energy Generation 27 Energy Capacity 480 Matter Stores 300 Matter Capacity 300 Sight Range 16 Terrain Scan Density 10 Base Temperature (-) 100 Armor Coverage 250 Core Shielding 20 Evasion (%) 50 Recoil Reduction 1 Item Schematics ----------------- Imp. Heat Sink | -8/Materials | Scanalyzed Hrd. Heavy Armor Plating | -8/Materials | Scanalyzed Cooling System | -8/Materials | Scanalyzed Core Shielding | -8/Materials | Scanalyzed Adv. Beam Cannon | -8/Materials | Scanalyzed Robot Schematics ------------------ None Fabricated ------------ Nothing Alien Tech Used ----------------- None Achievements -------------- None Challenges ------------ None Game ------ Seed ExperimentalActuatorTorch Manual? 0 Play Time 01:06:10 Cumulative 267.4 hours Start 2024.04.19 @ 07:25:36 End 2024.04.19 @ 13:21:21 Sessions 5 Manual Loads 0 Difficulty Rogue Special Mode None Game No. 208 Rogue 196 Adventurer 12 Explorer 0 Win Type - Total 1 Types 1/0/0/0/0/0/0/0/0 Lore% 31 Gallery% 49 Achievement% 36 Wizard Run 0 Options --------- Layout 1 ASCII 0 Keyboard 0 Movement Mouse Keybinds 0 Fullscreen 1 Font 32/SmallcapsGlow Map View 77x35 Zoom Use 0% Tactical HUD 1 Map Filters NONE Filters NONE Steam 1 RUN: c1c7661a-6190-4696-b234-725a87edb2e7